fUST/lending_fUST_20251231
["ID","MTS","AMOUNT","RATE_DAILY","PERIOD"]
[400203576,1767195039741,-1500.0,0.00015342,2]
[400203577,1767195039751,-2000.0,0.00015342,2]
[400203578,1767195039761,-422.85192268,0.00015342,2]
[400203579,1767195039770,-2000.0,0.00015342,2]
[400203580,1767195039781,-500.0,0.00015342,2]
[400203581,1767195039791,-500.0,0.00015342,2]
[400203582,1767195039801,-2000.0,0.00015342,2]
[400203583,1767195039812,-1518.84773542,0.00015342,2]
[400203584,1767195039822,-1500.0,0.00015342,2]
[400203585,1767195039833,-1010.33134929,0.00015342,2]
[400203586,1767195039843,-1492.01262303,0.00015342,2]
[400203587,1767195039853,-1500.0,0.00015342,2]
[400203588,1767195039863,-2000.0,0.00015342,2]
[400203589,1767195039873,-2000.0,0.00015342,2]
[400203590,1767195039882,-1504.79599952,0.00015342,2]
[400203591,1767195039893,-2000.0,0.00015342,2]
[400203592,1767195040004,-1604.13585388,0.00015342,2]
[400203595,1767195040014,-1793.14415046,0.00015342,2]
[400203596,1767195040026,-1500.0,0.00015342,2]
[400203597,1767195040036,-2000.0,0.00015342,2]
[400203598,1767195040046,-639.28203437,0.00015342,2]
[400203599,1767195040055,-2000.0,0.00015342,2]
[400203600,1767195040065,-1500.0,0.00015342,2]
[400203601,1767195040075,-1504.98936626,0.00015342,2]
[400203602,1767195040085,-2000.0,0.00015342,2]
[400203603,1767195040094,-83088.3194226,0.00015408,2]
[400203604,1767195040104,-2500.0,0.00015464,2]
[400203605,1767195040113,-343.79480379,0.00015464,2]
[400203607,1767195040123,-2570.27304924,0.00015464,2]
[400203609,1767195040133,-2500.0,0.00015464,2]
[400203611,1767195040143,-2500.0,0.00015464,2]
[400203612,1767195040153,-2360.16624078,0.00015464,2]
[400203613,1767195040163,-2500.0,0.00015464,2]
[400203614,1767195040172,-2500.0,0.00015464,2]
[400203615,1767195040183,-1260.55819049,0.00015464,2]
[400203616,1767195040192,-2500.0,0.00015464,2]
[400203617,1767195040202,-2500.0,0.00015464,2]
[400203618,1767195040212,-2500.0,0.00015464,2]
[400203619,1767195040222,-2500.0,0.00015464,2]
[400203620,1767195040232,-155.03442944,0.00015535,2]
[400203621,1767195040242,-1152.0,0.00015546,2]
[400203622,1767195040251,-830.31,0.00015565,2]
[400203623,1767195040261,-2455.53195138,0.00015582,2]
[400203624,1767195040271,-1511.0,0.00015684,2]
[400203625,1767195040281,-2455.53195138,0.00015689,2]
[400203626,1767195040291,-29193.9191346,0.00015782,2]
[400203627,1767195040301,-256.230664,0.00015782,2]
[400203628,1767195040312,-256.230664,0.00015782,2]
[400203629,1767195040322,-256.230664,0.00015782,2]
[400203630,1767195040331,-256.230664,0.00015782,2]
[400203631,1767195040341,-151.0,0.00015782,2]
[400203632,1767195040351,-279.886119,0.00015782,2]
[400203634,1767195040360,-151.0,0.00015782,2]
[400203635,1767195040370,-1008.82384523,0.0001589,2]
[400203636,1767195040380,-154.8977644,0.0001589,2]
[400203637,1767195040390,-417.8789574,0.0001589,2]
[400203638,1767195040399,-2500.0,0.0001589,2]
[400203639,1767195040409,-500.0,0.0001589,2]
[400203640,1767195040418,-151.58290824,0.0001589,2]
[400203641,1767195040428,-500.0,0.0001589,2]
[400203642,1767195040438,-277.52543131,0.0001589,2]
[400203644,1767195040448,-1000.0,0.0001589,2]
[400203646,1767195040457,-217.67131178,0.0001589,2]
[400203647,1767195040466,-1448.66474,0.00015958,2]
[400203648,1767195040476,-1448.66474,0.00015958,2]
[400203649,1767195040485,-1448.66474,0.00015958,2]
[400203650,1767195040495,-1448.66474,0.00015958,2]
[400203651,1767195040504,-3000.0,0.00016012,2]
[400203652,1767195040515,-2943.45692229,0.00016012,2]
[400203653,1767195040525,-3000.0,0.00016012,2]
[400203655,1767195040535,-1011.85733925,0.00016012,2]
[400203656,1767195040546,-3000.0,0.00016012,2]
[400203657,1767195040556,-3000.0,0.00016012,2]
[400203658,1767195040566,-3000.0,0.00016012,2]
[400203659,1767195040576,-3000.0,0.00016012,2]
[400203660,1767195040586,-3000.0,0.00016012,2]
[400203661,1767195040595,-2455.53195138,0.00016079,2]
[400203662,1767195040605,-2455.53195138,0.00016196,2]
[400203663,1767195040614,-170.5,0.00016438,2]
[400203664,1767195040624,-3000.0,0.00016438,2]
[400203665,1767195040633,-2455.53195138,0.00016494,2]
[400203666,1767195040644,-1948.74857563,0.0001656,2]
[400203668,1767195040654,-3500.0,0.0001656,2]
[400203669,1767195040664,-3500.0,0.0001656,2]
[400203670,1767195040674,-3500.0,0.0001656,2]
[400203671,1767195040684,-3500.0,0.0001656,2]
[400203672,1767195040694,-3500.0,0.0001656,2]
[400203673,1767195040704,-2517.91360693,0.0001656,2]
[400203674,1767195040713,-798.0,0.000166,2]
[400203675,1767195040723,-1089.01939578,0.00016673,2]
[400203676,1767195040733,-181.08010149,0.00016673,2]
[400203677,1767195040742,-151.0,0.00016673,2]
[400203679,1767195040752,-151.0,0.00016673,2]
[400203680,1767195040762,-500.0,0.00016673,2]
[400203681,1767195040771,-151.0,0.00016673,2]
[400203682,1767195040781,-151.0,0.00016673,2]
[400203683,1767195040791,-500.0,0.00016673,2]
[400203684,1767195040801,-250.0,0.00016673,2]
[400203685,1767195040810,-151.0,0.00016673,2]
[400203687,1767195040819,-500.0,0.00016673,2]
[400203688,1767195040828,-500.0,0.00016673,2]
[400203689,1767195040837,-250.0,0.00016673,2]
[400203690,1767195040847,-151.0,0.00016673,2]
[400203691,1767195040856,-500.0,0.00016673,2]
[400203692,1767195040866,-500.0,0.00016673,2]
[400203693,1767195040875,-250.0,0.00016673,2]
[400203694,1767195040884,-151.0,0.00016673,2]
[400203695,1767195040893,-500.0,0.00016673,2]
[400203696,1767195040903,-500.0,0.00016673,2]
[400203697,1767195040911,-250.0,0.00016673,2]
[400203698,1767195040921,-151.0,0.00016673,2]
[400203699,1767195040931,-500.0,0.00016673,2]
[400203700,1767195040940,-454.24590761,0.00016673,2]
[400203701,1767195040951,-250.0,0.00016673,2]
[400203702,1767195040961,-260.60606087,0.00016673,2]
[400203703,1767195040972,-151.0,0.00016673,2]
[400203704,1767195040982,-500.0,0.00016673,2]
[400203705,1767195040991,-2398.4119403,0.00016673,2]
[400203706,1767195041000,-217.47493711,0.00016673,2]
[400203707,1767195041010,-151.0,0.00016673,2]
[400203708,1767195041019,-500.0,0.00016673,2]
[400203709,1767195041031,-294.35654062,0.00016673,2]
[400203710,1767195041040,-500.0,0.00016673,2]
[400203711,1767195041049,-500.0,0.00016673,2]
[400203712,1767195041059,-151.0,0.00016673,2]
[400203713,1767195041068,-500.0,0.00016673,2]
[400203714,1767195041077,-151.0,0.00016673,2]
[400203715,1767195041087,-500.0,0.00016673,2]
[400203716,1767195041096,-151.0,0.00016673,2]
[400203717,1767195041105,-500.0,0.00016673,2]
[400203718,1767195041115,-151.0,0.00016673,2]
[400203719,1767195041124,-500.0,0.00016673,2]
[400203720,1767195041134,-500.0,0.00016673,2]
[400203721,1767195041143,-151.0,0.00016673,2]
[400203722,1767195041153,-500.0,0.00016673,2]
[400203723,1767195041162,-151.0,0.00016673,2]
[400203724,1767195041172,-500.0,0.00016673,2]
[400203725,1767195041181,-151.0,0.00016673,2]
[400203726,1767195041190,-151.0,0.00016673,2]
[400203727,1767195041199,-151.0,0.00016673,2]
[400203728,1767195041208,-151.0,0.00016673,2]
[400203729,1767195041218,-151.0,0.00016673,2]
[400203730,1767195041227,-496.47127164,0.00016673,2]
[400203731,1767195041237,-151.0,0.00016673,2]
[400203732,1767195041247,-30000.0,0.00016673,2]
[400203733,1767195041256,-151.0,0.00016673,2]
[400203734,1767195041266,-151.52605121,0.00016673,2]
[400203735,1767195041275,-250.0,0.00016673,2]
[400203736,1767195041285,-250.0,0.00016673,2]
[400203737,1767195041295,-1037.89,0.00016677,2]
[400203738,1767195041304,-1000.0,0.000167,2]
[400203739,1767195041314,-5884.83135051,0.00016744,2]
[400203740,1767195041323,-600.77707608,0.00016745,2]
[400203741,1767195041333,-1396.15120835,0.00016754,2]
[400203742,1767195041343,-2455.53195138,0.00016819,2]
[400203743,1767195041353,-2157.64054178,0.00016986,2]
[400203744,1767195041362,-1613.0,0.0001709,2]
[400203745,1767195041372,-1424.99602616,0.00017108,2]
[400203746,1767195041382,-903.07733073,0.00017108,2]
[400203747,1767195041392,-578.51359135,0.00017108,2]
[400203748,1767195041402,-4000.0,0.00017108,2]
[400203749,1767195041412,-3790.41349285,0.00017108,2]
[400203750,1767195041421,-2487.15318209,0.00017221,2]
[400203751,1767195041431,-514.84070869,0.00017221,2]
[400203752,1767195041441,-31110.0,0.00017221,2]
[400203753,1767195041452,-2455.53195138,0.00017251,2]
[400203754,1767195041462,-2455.53195138,0.00017311,2]
[400203755,1767195041471,-5888.0,0.00017438,2]
[400203756,1767195041481,-5888.0,0.00017591,2]
[400203757,1767195041491,-5888.0,0.00017624,2]
[400203758,1767195041502,-4200.87453769,0.00017656,2]
[400203759,1767195041511,-5888.0,0.00017682,2]
[400203760,1767195041521,-5888.0,0.00017753,2]
[400203761,1767195041530,-5888.0,0.00017766,2]
[400203762,1767195041540,-2579.17784983,0.00017769,2]
[400203763,1767195041550,-533.88981491,0.00017769,2]
[400203764,1767195041561,-32261.07,0.00017769,2]
[400203765,1767195041571,-5888.0,0.00017777,2]
[400203766,1767195041580,-1245.47,0.00017789,2]
[400203767,1767195041590,-61928.07277791,0.000178,3]
[400203768,1767195041601,-2455.53195138,0.00017806,2]
[400203769,1767195041610,-1041.66666667,0.00017898,2]
[400203770,1767195041620,-5888.0,0.00017905,2]
[400203771,1767195041631,-2455.53195138,0.00017954,2]
[400203772,1767195041641,-5888.0,0.0001798,2]
[400203773,1767195041650,-5888.0,0.0001798,2]
[400203774,1767195041660,-1681.84174943,0.00018,2]
[400203775,1767195041670,-187.78006525,0.00018042,2]
[400203776,1767195041679,-151.0,0.00018042,2]
[400203777,1767195041689,-5888.0,0.00018052,2]
[400203778,1767195041699,-616.06600984,0.00018094,2]
[400203779,1767195041708,-159.07525944,0.000181,2]
[400203780,1767195041718,-2455.53195138,0.00018211,2]
[400203781,1767195041728,-5888.0,0.00018244,2]
[400203782,1767195041737,-5888.0,0.0001828,2]
[400203783,1767195041747,-5888.0,0.00018289,2]
[400203784,1767195041756,-627.0,0.00018301,2]
[400203785,1767195041765,-1364.0,0.00018301,2]
[400203786,1767195041775,-2156.0,0.00018301,2]
[400203787,1767195041784,-150.0,0.00018301,2]
[400203788,1767195041793,-416.0,0.00018301,2]
[400203789,1767195041803,-416.0,0.00018301,2]
[400203790,1767195041813,-2674.60743027,0.00018317,2]
[400203791,1767195041822,-553.64373807,0.00018317,2]
[400203792,1767195041832,-33454.72959,0.00018317,2]
[400203793,1767195041841,-170.5,0.00018319,2]
[400203794,1767195041850,-5888.0,0.00018349,2]
[400203795,1767195041860,-5888.0,0.00018449,2]
[400203796,1767195041870,-2455.53195138,0.00018462,2]
[400203797,1767195041880,-776.0,0.000186,2]
[400203798,1767195041889,-5888.0,0.00018606,2]
[400203799,1767195041899,-5888.0,0.00018612,2]
[400203800,1767195041908,-5888.0,0.00018666,2]
[400203801,1767195041917,-5888.0,0.00018688,2]
[400203802,1767195041926,-501.103,0.00018694,2]
[400203803,1767195041936,-2455.53195138,0.00018727,2]
[400203804,1767195041945,-5888.0,0.00018736,2]
[400203805,1767195041957,-670.99777329,0.00018745,2]
[400203806,1767195041967,-2258.0,0.00018786,2]
[400203807,1767195041976,-2773.56790519,0.00018865,2]
[400203808,1767195041985,-574.12855637,0.00018865,2]
[400203809,1767195041995,-34692.55458483,0.00018865,2]
[400203810,1767195042004,-5888.0,0.00018869,2]
[400203811,1767195042014,-5888.0,0.0001888,2]
[400203812,1767195042024,-160.0,0.000189,2]
[400203813,1767195042035,-302.84859387,0.000189,2]
[400203814,1767195042044,-1453.05,0.00018901,2]
[400203815,1767195042054,-5445.0,0.00018918,2]
[400203816,1767195042063,-256.230664,0.00019,2]
[400203817,1767195042072,-256.230664,0.00019,2]
[400203818,1767195042082,-256.230664,0.00019,2]
[400203819,1767195042091,-256.230664,0.00019,2]
[400203820,1767195042100,-1396.15120835,0.00019008,2]
[400203821,1767195042110,-302.84859387,0.00019089,2]
[400203822,1767195042120,-5888.0,0.00019117,2]
[400203823,1767195042129,-151.0,0.00019126,2]
[400203824,1767195042138,-158.312179,0.00019126,2]
[400203825,1767195042148,-2455.53195138,0.00019173,2]
[400203826,1767195042157,-151.0,0.00019178,2]
[400203827,1767195042166,-151.0,0.00019178,2]
[400203828,1767195042176,-156.190121,0.00019178,2]
[400203829,1767195042186,-156.190121,0.00019178,2]
[400203830,1767195042196,-156.190121,0.00019178,2]
[400203831,1767195042206,-156.190121,0.00019178,2]
[400203832,1767195042216,-156.190121,0.00019178,2]
[400203833,1767195042226,-156.190121,0.00019178,2]
[400203834,1767195042235,-156.190121,0.00019178,2]
[400203835,1767195042245,-156.190121,0.00019178,2]
[400203836,1767195042255,-150.0,0.00019178,2]
[400203837,1767195042264,-165.71,0.000192,2]
[400203838,1767195042274,-160.6,0.000192,2]
[400203839,1767195042385,-13838.09,0.000192,2]
[400203840,1767195042394,-166.47,0.000192,2]
[400203841,1767195042404,-5888.0,0.00019215,2]
[400203842,1767195042414,-1000.0,0.00019229,5]
[400203843,1767195042423,-500.0,0.00019256,7]
[400203844,1767195042433,-155.015211,0.00019278,2]
[400203845,1767195042443,-302.84859387,0.00019278,2]
[400203846,1767195042453,-184.1677213,0.00019288,2]
[400203847,1767195042463,-62025.04066446,0.00019301,2]
[400203848,1767195042473,-300.0,0.00019315,2]
[400203849,1767195042482,-5884.83135051,0.00019341,2]
[400203850,1767195042492,-2455.53195138,0.00019397,2]
[400203851,1767195042502,-326.52528195,0.00019411,2]
[400203852,1767195042512,-151.0,0.00019411,2]
[400203853,1767195042522,-2876.18991768,0.00019413,2]
[400203854,1767195042532,-595.37131296,0.00019413,2]
[400203855,1767195042542,-35976.17910447,0.00019413,2]
[400203856,1767195042552,-450.0,0.00019452,2]
[400203857,1767195042562,-302.84859387,0.00019467,2]
[400203858,1767195042572,-608.02937822,0.00019487,2]
[400203859,1767195042583,-1094.45288079,0.00019487,2]
[400203860,1767195042594,-1945.69401029,0.00019487,2]
[400203861,1767195042604,-179.9463435,0.00019487,2]
[400203862,1767195042613,-719.78537401,0.00019487,2]
[400203863,1767195042623,-1619.51709152,0.00019487,2]
[400203864,1767195042633,-2455.53195138,0.00019565,2]
[400203865,1767195042643,-157.78963357,0.00019589,2]
[400203866,1767195042652,-631.1585343,0.00019589,2]
[400203867,1767195042662,-1420.10670217,0.00019589,2]
[400203868,1767195042671,-600.0,0.00019589,2]
[400203869,1767195042680,-184.1677213,0.00019616,2]
[400203870,1767195042690,-184.1677213,0.00019616,2]
[400203871,1767195042700,-184.1677213,0.00019616,2]
[400203872,1767195042710,-184.1677213,0.00019616,2]
[400203874,1767195042719,-184.1677213,0.00019616,2]
[400203876,1767195042728,-302.84859387,0.00019656,2]
[400203877,1767195042739,-406.55106819,0.00019726,2]
[400203878,1767195042748,-224.27318784,0.00019781,2]
[400203880,1767195042758,-160.0,0.000198,2]
[400203882,1767195042767,-1829.033321,0.000198,5]
[400203885,1767195042776,-1448.66474,0.00019819,2]
[400203886,1767195042785,-1448.66474,0.00019819,2]
[400203888,1767195042794,-1448.66474,0.00019819,2]
[400203890,1767195042803,-1448.66474,0.00019819,2]
[400203892,1767195042813,-1000.0,0.0001982,5]
[400203894,1767195042823,-1000.0,0.0001984,5]
[400203896,1767195042833,-454.27289081,0.00019845,4]
[400203897,1767195042843,-1000.0,0.0001986,5]
[400203898,1767195042853,-2455.53195147,0.00019879,2]
[400203899,1767195042862,-1000.0,0.0001988,5]
[400203900,1767195042871,-1000.0,0.000199,5]
[400203901,1767195042880,-1000.0,0.0001992,5]
[400203902,1767195042890,-1000.0,0.0001994,5]
[400203903,1767195042900,-1000.0,0.0001996,5]
[400203904,1767195042909,-2982.60894464,0.00019961,2]
[400203905,1767195042919,-617.40005154,0.00019961,2]
[400203906,1767195042929,-22484.75956124,0.00019961,2]
[400203907,1767195042939,-1000.0,0.0001998,5]
[400203908,1767195042949,-28297.75577322,0.0002,2]
[400203909,1767195042962,-562.7799603,0.0002,2]
[400203910,1767195042972,-1003.0,0.0002,2]
[400203911,1767195042982,-210.20146537,0.0002,2]
[400203912,1767195042991,-83886.0,0.0002,2]
[400203913,1767195043002,-1000.0,0.0002,5]
[400203914,1767195043011,-150.0,0.0002,10]
[400203915,1767195043021,-418.94279744,0.0002,2]
[400203916,1767195043031,-410.56094938,0.0002,7]
[400203917,1767195043041,-394.73148624,0.0002,2]
[400203918,1767195043051,-2000.0,0.0002,7]
[400203919,1767195043061,-156.190121,0.0002,2]
[400203920,1767195043071,-156.190121,0.0002,2]
[400203921,1767195043081,-156.190121,0.0002,2]
[400203922,1767195043090,-156.190121,0.0002,2]
[400203923,1767195043100,-1660.63,0.00020012,2]
[400203924,1767195043110,-454.27289081,0.00020034,4]
[400203925,1767195043119,-248.24914197,0.00020048,7]
[400203926,1767195043128,-489.59729593,0.00020048,7]
[400203927,1767195043138,-648.93172618,0.00020048,7]
[400203928,1767195043148,-252.62617199,0.00020048,7]
[400203929,1767195043158,-276.78135505,0.00020048,7]
[400203930,1767195043167,-992.00357131,0.00020048,7]
[400203931,1767195043178,-1956.43079454,0.00020048,7]
[400203932,1767195043187,-184.1677213,0.0002011,2]
[400203933,1767195043197,-184.1677213,0.0002011,2]
[400203934,1767195043206,-184.1677213,0.0002011,2]
[400203935,1767195043216,-184.1677213,0.0002011,2]
[400203936,1767195043225,-184.1677213,0.0002011,2]
[400203937,1767195043234,-184.1677213,0.0002011,2]
[400203938,1767195043244,-184.1677213,0.0002011,2]
[400203939,1767195043253,-184.1677213,0.0002011,2]
[400203940,1767195043263,-184.1677213,0.0002011,2]
[400203941,1767195043272,-184.1677213,0.0002011,2]
[400203942,1767195043282,-184.1677213,0.0002011,2]
[400203943,1767195043292,-184.1677213,0.0002011,2]
[400203944,1767195043302,-184.1677213,0.0002011,2]
[400203945,1767195043312,-184.1677213,0.0002011,2]
[400203946,1767195043322,-184.1677213,0.0002011,2]
[400203947,1767195043333,-1096.554859,0.00020187,2]
[400203948,1767195043342,-170.5,0.000202,2]
[400203949,1767195043353,-7700.70910186,0.00020217,2]
[400203950,1767195043363,-605.69718773,0.00020223,4]
[400203951,1767195043373,-1003.120289,0.000203,2]
[400203952,1767195043383,-346.0,0.000203,2]
[400203953,1767195043392,-346.0,0.000203,2]
[400203954,1767195043402,-155.0,0.000203,2]
[400203955,1767195043412,-346.0,0.000203,2]
[400203956,1767195043427,-166.0,0.000203,2]
[400203957,1767195043437,-155.0,0.000203,2]
[400203958,1767195043447,-152.0,0.000203,2]
[400203959,1767195043457,-155.0,0.000203,2]
[400203960,1767195043467,-166.0,0.000203,2]
[400203961,1767195043476,-346.0,0.000203,2]
[400203962,1767195043486,-155.0,0.000203,2]
[400203963,1767195043496,-152.0,0.000203,2]
[400203964,1767195043506,-346.0,0.000203,2]
[400203965,1767195043515,-166.0,0.000203,2]
[400203966,1767195043525,-155.0,0.000203,2]
[400203967,1767195043535,-166.0,0.000203,2]
[400203968,1767195043545,-152.0,0.000203,2]
[400203969,1767195043555,-346.0,0.000203,2]
[400203970,1767195043566,-155.0,0.000203,2]
[400203971,1767195043576,-152.0,0.000203,2]
[400203972,1767195043585,-346.0,0.000203,2]
[400203973,1767195043595,-166.0,0.000203,2]
[400203974,1767195043605,-155.0,0.000203,2]
[400203975,1767195043615,-298.50338672,0.000203,2]
[400203976,1767195043625,-166.0,0.000203,2]
[400203977,1767195043635,-346.0,0.000203,2]
[400203978,1767195043645,-155.0,0.000203,2]
[400203979,1767195043654,-335.0,0.000203,2]
[400203980,1767195043664,-166.0,0.000203,2]
[400203981,1767195043674,-346.0,0.000203,2]
[400203982,1767195043684,-155.0,0.000203,2]
[400203983,1767195043699,-335.0,0.000203,2]
[400203984,1767195043719,-346.0,0.000203,2]
[400203985,1767195043731,-155.0,0.000203,2]
[400203986,1767195043741,-172.0,0.000203,2]
[400203987,1767195043751,-335.0,0.000203,2]
[400203988,1767195043761,-346.0,0.000203,2]
[400203989,1767195043770,-155.0,0.000203,2]
[400203990,1767195043780,-163.0,0.000203,2]
[400203991,1767195043789,-335.0,0.000203,2]
[400203992,1767195043799,-346.0,0.000203,2]
[400203993,1767195043808,-155.0,0.000203,2]
[400203994,1767195043819,-203.09697627,0.000203,2]
[400203995,1767195043828,-335.0,0.000203,2]
[400203996,1767195043838,-346.0,0.000203,2]
[400203997,1767195043848,-155.0,0.000203,2]
[400203998,1767195043858,-346.0,0.000203,2]
[400203999,1767195043868,-335.0,0.000203,2]
[400204000,1767195043877,-155.0,0.000203,2]
[400204001,1767195043887,-346.0,0.000203,2]
[400204002,1767195043897,-151.0,0.000203,2]
[400204004,1767195043907,-335.0,0.000203,2]
[400204005,1767195043916,-155.0,0.000203,2]
[400204007,1767195043926,-346.0,0.000203,2]
[400204008,1767195043936,-151.0,0.000203,2]
[400204010,1767195043946,-335.0,0.000203,2]
[400204011,1767195043959,-155.0,0.000203,2]
[400204013,1767195043969,-346.0,0.000203,2]
[400204016,1767195043978,-151.0,0.000203,2]
[400204017,1767195043989,-335.0,0.000203,2]
[400204018,1767195044000,-155.0,0.000203,2]
[400204019,1767195044010,-346.0,0.000203,2]
[400204020,1767195044019,-151.0,0.000203,2]
[400204021,1767195044031,-335.0,0.000203,2]
[400204022,1767195044040,-155.0,0.000203,2]
[400204023,1767195044051,-346.0,0.000203,2]
[400204024,1767195044061,-335.0,0.000203,2]
[400204025,1767195044071,-151.0,0.000203,2]
[400204026,1767195044080,-155.0,0.000203,2]
[400204027,1767195044090,-346.0,0.000203,2]
[400204028,1767195044100,-335.0,0.000203,2]
[400204029,1767195044109,-155.0,0.000203,2]
[400204030,1767195044119,-151.0,0.000203,2]
[400204031,1767195044128,-346.0,0.000203,2]
[400204032,1767195044138,-335.0,0.000203,2]
[400204033,1767195044147,-155.0,0.000203,2]
[400204034,1767195044158,-151.0,0.000203,2]
[400204035,1767195044171,-346.0,0.000203,2]
[400204036,1767195044181,-335.0,0.000203,2]
[400204037,1767195044190,-155.0,0.000203,2]
[400204038,1767195044200,-151.0,0.000203,2]
[400204039,1767195044210,-346.0,0.000203,2]
[400204040,1767195044219,-335.0,0.000203,2]
[400204041,1767195044229,-155.0,0.000203,2]
[400204042,1767195044239,-151.0,0.000203,2]
[400204043,1767195044249,-335.0,0.000203,2]
[400204044,1767195044259,-346.0,0.000203,2]
[400204045,1767195044268,-155.0,0.000203,2]
[400204046,1767195044279,-184.30374693,0.000203,2]
[400204047,1767195044289,-346.0,0.000203,2]
[400204048,1767195044298,-155.0,0.000203,2]
[400204049,1767195044308,-335.0,0.000203,2]
[400204050,1767195044318,-346.0,0.000203,2]
[400204051,1767195044328,-158.11771332,0.000203,2]
[400204052,1767195044337,-335.0,0.000203,2]
[400204053,1767195044347,-335.0,0.000203,2]
[400204054,1767195044356,-346.0,0.000203,2]
[400204055,1767195044366,-335.0,0.000203,2]
[400204056,1767195044375,-346.0,0.000203,2]
[400204057,1767195044386,-335.0,0.000203,2]
[400204058,1767195044395,-346.0,0.000203,2]
[400204059,1767195044405,-335.0,0.000203,2]
[400204060,1767195044415,-346.0,0.000203,2]
[400204061,1767195044424,-335.0,0.000203,2]
[400204062,1767195044434,-346.0,0.000203,2]
[400204063,1767195044444,-335.0,0.000203,2]
[400204064,1767195044454,-346.0,0.000203,2]
[400204065,1767195044466,-335.0,0.000203,2]
[400204066,1767195044475,-346.0,0.000203,2]
[400204067,1767195044485,-335.0,0.000203,2]
[400204068,1767195044495,-346.0,0.000203,2]
[400204069,1767195044505,-335.0,0.000203,2]
[400204070,1767195044514,-346.0,0.000203,2]
[400204071,1767195044524,-335.0,0.000203,2]
[400204072,1767195044628,-346.0,0.000203,2]
[400204073,1767195044638,-335.0,0.000203,2]
[400204074,1767195044648,-346.0,0.000203,2]
[400204075,1767195044658,-352.93581086,0.000203,2]
[400204076,1767195044667,-346.0,0.000203,2]
[400204077,1767195044677,-346.0,0.000203,2]
[400204078,1767195044687,-346.0,0.000203,2]
[400204079,1767195044696,-156.5492518,0.000203,2]
[400204080,1767195044707,-9553.69903552,0.00020365,2]
[400204081,1767195044716,-165.71,0.000204,2]
[400204082,1767195044726,-13838.09,0.000204,2]
[400204083,1767195044736,-207.91104659,0.00020419,7]
[400204084,1767195044746,-343.35776652,0.00020419,7]
[400204085,1767195044755,-183.9337148,0.00020438,2]
[400204086,1767195044765,-184.1677213,0.00020438,2]
[400204087,1767195044775,-184.1677213,0.00020438,2]
[400204088,1767195044784,-184.1677213,0.00020438,2]
[400204089,1767195044793,-184.1677213,0.00020438,2]
[400204090,1767195044803,-184.1677213,0.00020438,2]
[400204091,1767195044813,-184.1677213,0.00020438,2]
[400204092,1767195044822,-178.1282253,0.00020438,2]
[400204093,1767195044832,-184.1677213,0.00020438,2]
[400204094,1767195044841,-184.1677213,0.00020438,2]
[400204095,1767195044851,-184.1677213,0.00020438,2]
[400204096,1767195044860,-184.1677213,0.00020438,2]
[400204097,1767195044870,-184.1677213,0.00020438,2]
[400204098,1767195044880,-184.1677213,0.00020438,2]
[400204099,1767195044889,-282.0,0.00020463,2]
[400204100,1767195044899,-3092.96547559,0.00020509,2]
[400204101,1767195044909,-640.24385345,0.00020509,2]
[400204102,1767195044919,-1203.152413,0.00020548,2]
[400204103,1767195044928,-303.4572356,0.00020548,2]
[400204104,1767195044938,-155.5623171,0.00020548,2]